bitfinex/quotes_BTCUSD_20250620
["timestamp","ask_amount","ask_price","bid_price","bid_amount"]
[1750431302969,6.69814331,104230.0,104220.0,6e-05]
[1750431303408,6.6986155,104230.0,104220.0,6e-05]
[1750431304054,6.6986155,104230.0,104210.0,0.0110107]
[1750431304055,6.22711852,104220.0,104210.0,0.0110107]
[1750431304277,6.32239745,104220.0,104210.0,0.0110107]
[1750431304806,6.52674227,104220.0,104210.0,0.0110107]
[1750431305064,6.52674227,104220.0,104210.0,0.01997103]
[1750431305339,6.49707745,104220.0,104210.0,0.0110107]
[1750431305559,6.54755745,104220.0,104210.0,0.01997091]
[1750431305770,6.57571083,104220.0,104210.0,0.01497091]
[1750431305985,6.57567083,104220.0,104210.0,0.01497091]
[1750431306198,6.57767083,104220.0,104210.0,0.01497091]
[1750431306675,6.58067083,104220.0,104210.0,0.01597091]
[1750431306899,7.02944131,104220.0,104210.0,0.0060107]
[1750431307125,0.28025683,104210.0,104200.0,0.02980645]
[1750431307353,5.42979049,104210.0,104200.0,0.0281947]
[1750431307591,6.90655093,104210.0,104200.0,0.0281947]
[1750431307828,6.95655093,104210.0,104200.0,0.0281947]
[1750431308062,6.98721575,104210.0,104200.0,0.0281947]
[1750431308302,6.99221575,104210.0,104200.0,0.0291947]
[1750431308545,7.04221575,104210.0,104200.0,0.0291947]
[1750431308789,7.11365047,104210.0,104200.0,0.0291947]
[1750431309058,7.10712008,104210.0,104200.0,0.0291947]
[1750431309303,7.10712008,104210.0,104180.0,0.00020537]
[1750431309304,0.201574,104180.0,104170.0,0.00667167]
[1750431309520,6.76858,104180.0,104170.0,0.01561956]
[1750431310439,6.20019978,104180.0,104170.0,0.01561956]
[1750431310652,6.78336185,104180.0,104170.0,0.01561956]
[1750431310891,6.81402667,104180.0,104170.0,0.01561956]
[1750431311120,7.42494598,104180.0,104170.0,0.00134616]
[1750431311348,7.42494598,104180.0,104120.0,0.0096043]
[1750431311349,0.00960319,104130.0,104120.0,0.0096043]
[1750431311625,0.00960264,104130.0,104120.0,0.24202609]
[1750431311855,0.2208131,104160.0,104150.0,0.20161577]
[1750431312080,0.2208131,104160.0,104140.0,0.2112536]
[1750431312081,0.02880284,104150.0,104140.0,0.2112536]
[1750431312303,0.22083412,104150.0,104140.0,0.19204916]
[1750431312523,0.0288034,104150.0,104140.0,0.22085587]
[1750431312743,0.22130573,104150.0,104140.0,0.22085596]
[1750431313015,0.7896865,104150.0,104140.0,0.21125388]
[1750431313246,0.02880589,104140.0,104130.0,0.22087652]
[1750431313465,0.03840815,104140.0,104130.0,0.22087652]
[1750431313687,0.38558511,104150.0,104140.0,0.22085559]
[1750431313911,0.39518609,104150.0,104140.0,0.20165152]
[1750431314133,0.02880597,104140.0,104130.0,0.22087709]
[1750431314355,0.01920555,104130.0,104120.0,0.21129363]
[1750431314577,0.03080838,104130.0,104120.0,0.22089784]
[1750431314807,0.02880838,104130.0,104120.0,0.22089784]
[1750431315029,0.68022101,104140.0,104120.0,0.21129419]
[1750431315270,0.01920814,104120.0,104110.0,0.20170954]
[1750431315519,0.08251843,104140.0,104130.0,0.20167088]
[1750431315737,0.42306233,104150.0,104130.0,0.20167088]
[1750431315738,0.22135633,104150.0,104140.0,0.20165152]
[1750431315963,0.00047161,104150.0,104140.0,0.23045741]
[1750431316192,0.05243161,104150.0,104140.0,0.23045741]
[1750431316420,0.00347224,104150.0,104140.0,0.23045741]
[1750431316892,0.00047161,104150.0,104140.0,0.23045741]
[1750431317104,0.00047161,104150.0,104140.0,0.30687017]
[1750431317328,0.00047161,104150.0,104140.0,0.4328491]
[1750431317536,0.00047161,104150.0,104140.0,0.26365759]
[1750431317963,0.00147161,104150.0,104140.0,0.26565759]
[1750431318180,0.00147161,104150.0,104140.0,0.23245759]
[1750431318398,0.0120724,104150.0,104140.0,0.23045759]
[1750431318602,0.0120724,104150.0,104140.0,0.26235759]
[1750431318603,0.0100724,104150.0,104140.0,0.26235759]
[1750431318813,0.0110724,104150.0,104140.0,0.26635759]
[1750431319026,0.0130724,104150.0,104140.0,0.26635759]
[1750431319243,0.0130724,104150.0,104140.0,0.43913929]
[1750431319244,0.00147161,104150.0,104140.0,0.43913929]
[1750431319451,0.00147161,104150.0,104140.0,0.39233652]
[1750431319667,0.00147161,104150.0,104140.0,1.13595674]
[1750431319886,0.00147161,104150.0,104140.0,0.96071674]
[1750431320100,0.00047161,104150.0,104140.0,0.56349652]
[1750431320310,0.00147161,104150.0,104140.0,1.22914659]
[1750431320750,0.00047161,104150.0,104140.0,1.22714659]
[1750431320974,0.00247161,104150.0,104140.0,1.22714659]
[1750431321189,0.00147161,104150.0,104140.0,1.23114659]
[1750431321614,0.00347161,104150.0,104140.0,1.23114659]
[1750431322531,0.00347161,104150.0,104140.0,0.39233652]
[1750431322758,0.00347161,104150.0,104140.0,0.56721652]
[1750431323215,0.00347161,104150.0,104140.0,0.39233652]
[1750431323433,0.00347161,104150.0,104140.0,0.56721652]
[1750431323650,0.00347161,104150.0,104140.0,1.13559674]
[1750431323864,0.00347161,104150.0,104140.0,1.23086659]
[1750431324312,0.20510303,104150.0,104140.0,0.43186878]
[1750431324587,0.23390615,104150.0,104140.0,0.3899736]
[1750431324808,0.24350768,104150.0,104140.0,0.38997388]
[1750431325028,0.23390698,104150.0,104140.0,0.39957606]
[1750431325245,0.22430609,104150.0,104140.0,0.39957615]
[1750431325472,0.21470456,104150.0,104140.0,0.23445823]
[1750431325694,0.21470456,104150.0,104140.0,0.22485624]
[1750431325984,0.21470456,104150.0,104140.0,0.23445842]
[1750431326205,0.224306,104150.0,104140.0,0.24406041]
[1750431326433,0.23390753,104150.0,104140.0,0.24790634]
[1750431326667,0.2147053,104150.0,104140.0,0.004]
[1750431327127,0.2666653,104150.0,104140.0,0.004]
[1750431328010,0.34291024,104150.0,104140.0,0.004]
[1750431328486,0.91129046,104150.0,104140.0,0.004]
[1750431328709,0.2993653,104150.0,104140.0,0.004]
[1750431329150,0.2666653,104150.0,104140.0,0.004]
[1750431329797,0.2666653,104150.0,104140.0,0.19604916]
[1750431330009,0.25706386,104150.0,104140.0,0.004]
[1750431330225,0.25706386,104150.0,104140.0,0.20565161]
[1750431330459,0.00347161,104150.0,104140.0,0.24926463]
[1750431330670,0.02267384,104150.0,104140.0,0.22485587]
[1750431330884,0.04187589,104150.0,104140.0,0.23445768]
[1750431331132,0.24350805,104150.0,104140.0,0.23445768]
[1750431331340,0.23390652,104150.0,104140.0,0.19604916]
[1750431331556,0.23390735,104150.0,104140.0,0.19604916]
[1750431331774,0.21470521,104150.0,104140.0,0.20565161]
[1750431331989,0.01307296,104150.0,104140.0,0.27807097]
[1750431332203,0.0130724,104150.0,104140.0,0.23445786]
[1750431332478,0.22430554,104150.0,104140.0,0.23445786]
[1750431332701,0.24550521,104150.0,104140.0,0.004]
[1750431332926,0.84518543,104150.0,104140.0,0.004]
[1750431333151,0.32876521,104150.0,104140.0,0.004]
[1750431333767,0.29746521,104150.0,104140.0,0.19604916]
[1750431334020,0.26666521,104150.0,104140.0,0.004]
[1750431334233,0.25706386,104150.0,104140.0,0.20565161]
[1750431334443,0.25706386,104150.0,104140.0,0.004]
[1750431334444,0.28866386,104150.0,104140.0,0.004]
[1750431335261,0.28766386,104150.0,104130.0,0.23047624]
[1750431335472,0.28566386,104150.0,104130.0,0.23047624]
[1750431335676,0.28866386,104150.0,104140.0,0.003]
[1750431335913,0.98242301,104150.0,104140.0,0.003]
[1750431336350,0.22087662,104130.0,104120.0,0.21129375]
[1750431336561,0.22087662,104130.0,104120.0,0.22089749]
[1750431336756,0.23048,104130.0,104120.0,0.21129375]
[1750431336962,0.22087727,104130.0,104120.0,0.20168982]
[1750431337176,0.22087727,104130.0,104120.0,0.21129393]
[1750431337377,0.24402578,104140.0,104120.0,0.21129381]
[1750431337583,0.00960255,104130.0,104120.0,0.23050084]
[1750431337793,0.21125484,104140.0,104130.0,0.1920676]
[1750431337989,0.26321484,104140.0,104130.0,0.20167088]
[1750431338192,0.00960273,104130.0,104120.0,0.21129326]
[1750431338410,0.01920362,104140.0,104130.0,0.2208769]
[1750431338631,0.00047161,104150.0,104140.0,0.22085541]
[1750431338847,0.00047161,104150.0,104140.0,1.12363456]
[1750431339273,0.03839341,104180.0,104170.0,0.21118316]
[1750431339484,0.00959895,104170.0,104160.0,0.25298253]
[1750431339695,0.01919652,104180.0,104170.0,0.23039112]
[1750431339913,0.03179473,104180.0,104170.0,0.23039112]
[1750431340122,0.04139331,104180.0,104170.0,0.23039112]
[1750431340361,0.02219624,104180.0,104170.0,0.23039112]
[1750431341013,0.08075261,104190.0,104180.0,0.22077089]
[1750431341197,0.28230746,104190.0,104180.0,0.22077089]
[1750431341486,0.28230746,104190.0,104160.0,0.56088959]
[1750431341487,0.21117277,104180.0,104160.0,0.56088959]
[1750431341697,0.77955299,104180.0,104170.0,0.21119258]
[1750431341881,0.77955299,104180.0,104170.0,0.21319258]
[1750431342119,0.21117277,104180.0,104170.0,0.20359335]
[1750431342337,0.21117277,104180.0,104170.0,0.22279199]
[1750431342338,0.01919689,104180.0,104170.0,0.22279199]
[1750431342566,0.04139408,104180.0,104170.0,0.23039112]
[1750431342781,0.01259778,104180.0,104170.0,0.23999016]
[1750431343004,0.07120339,104200.0,104190.0,0.21115168]
[1750431343229,0.02879188,104190.0,104180.0,0.38557212]
[1750431343444,0.01919652,104180.0,104170.0,0.38659276]
[1750431343659,0.01919652,104180.0,104170.0,0.38759276]
[1750431343921,0.02879482,104180.0,104170.0,0.46476254]
[1750431344113,0.02879473,104180.0,104170.0,0.46476254]
[1750431344325,0.22074971,104190.0,104180.0,0.2207708]
[1750431344534,0.02879197,104190.0,104180.0,0.2207708]
[1750431344742,0.01919634,104180.0,104170.0,0.47227201]
[1750431344953,0.00959803,104180.0,104170.0,0.55691008]
[1750431345192,0.02879446,104180.0,104170.0,0.55691008]
[1750431345411,0.01919615,104180.0,104170.0,0.55691008]
[1750431345829,0.01919523,104190.0,104180.0,0.21117268]
[1750431346039,0.21415175,104190.0,104180.0,0.20157419]
[1750431346248,0.86275245,104190.0,104180.0,0.21117286]
[1750431346483,0.81163245,104190.0,104180.0,0.21117286]
[1750431346701,0.86275245,104190.0,104180.0,0.2632866]
[1750431346907,0.86275245,104190.0,104180.0,0.27288509]
[1750431347124,0.10241523,104190.0,104180.0,0.23996768]
[1750431347324,0.07991224,104190.0,104180.0,0.23996768]
[1750431347534,0.22374883,104190.0,104180.0,0.23036956]
[1750431347820,0.03838999,104190.0,104180.0,0.23996777]
[1750431348042,0.004,104190.0,104180.0,0.33624615]
[1750431348258,0.004,104190.0,104180.0,1.06079622]
[1750431348694,0.004,104190.0,104180.0,0.492416]
[1750431348898,0.004,104190.0,104180.0,0.636076]
[1750431349336,0.04803196,104200.0,104190.0,0.22074943]
[1750431349541,0.00959729,104190.0,104180.0,0.40672091]
[1750431349747,0.001,104190.0,104180.0,0.6045177]
[1750431349972,0.02019449,104190.0,104180.0,0.6045177]
[1750431350200,0.0201944,104190.0,104180.0,0.5995177]
[1750431350409,0.22174897,104190.0,104180.0,0.20557409]
[1750431350615,0.03938963,104190.0,104180.0,0.39929061]
[1750431350832,0.24094438,104190.0,104180.0,0.38969249]
[1750431351036,0.24094512,104190.0,104180.0,0.2247707]
[1750431351241,0.24094512,104190.0,104180.0,0.44188705]
[1750431351454,0.23134783,104190.0,104180.0,0.43228884]
[1750431351719,0.22175026,104190.0,104180.0,0.39925098]
[1750431351933,0.01059738,104190.0,104180.0,0.41828731]
[1750431352147,0.001,104190.0,104180.0,0.51356624]
[1750431352359,0.02019431,104190.0,104180.0,0.51356624]
[1750431352565,0.01059702,104190.0,104180.0,0.60883609]
[1750431352770,0.01159702,104190.0,104180.0,0.61383609]
[1750431352977,0.02119413,104190.0,104180.0,0.61383609]
[1750431353180,0.01159702,104190.0,104180.0,0.61383609]
[1750431353388,0.01159702,104190.0,104180.0,0.61135609]
[1750431354010,0.0307917,104190.0,104180.0,0.61135609]
[1750431354421,0.03079151,104190.0,104180.0,0.61135609]
[1750431354661,0.03079151,104190.0,104180.0,0.43703609]
[1750431354870,0.04038899,104190.0,104180.0,0.50619876]
[1750431355086,0.04998656,104190.0,104180.0,0.50619876]
[1750431355317,0.0499872,104190.0,104180.0,0.50619876]
[1750431356161,0.0499872,104190.0,104180.0,0.50615876]
[1750431356372,0.002,104190.0,104180.0,0.60143769]
[1750431356584,0.002,104190.0,104180.0,0.60123769]
[1750431357235,0.002,104190.0,104180.0,1.23081791]
[1750431357679,0.002,104190.0,104180.0,0.48863769]
[1750431357929,0.002,104190.0,104180.0,0.66239769]
[1750431358362,0.002,104190.0,104180.0,0.45813769]
[1750431358577,0.002,104190.0,104180.0,0.66191769]
[1750431358792,0.0115972,104190.0,104180.0,0.33216784]
[1750431359010,0.25327833,104200.0,104190.0,0.21115251]
[1750431359273,0.07093659,104200.0,104190.0,0.22074971]
[1750431359493,0.24368214,104200.0,104190.0,0.00959785]
[1750431359720,0.24368214,104200.0,104190.0,0.20155485]
[1750431359939,0.19198857,104200.0,104190.0,0.43688497]
[1750431360155,0.19198857,104200.0,104180.0,0.2207707]
[1750431360156,0.23034672,104190.0,104180.0,0.2207707]
[1750431360375,0.23994448,104190.0,104180.0,0.21117249]
[1750431360600,0.23036902,104180.0,104170.0,0.20159335]
[1750431360815,0.23036902,104180.0,104160.0,0.2330231]
[1750431360816,0.0287975,104170.0,104160.0,0.21132352]
[1750431361051,0.01919818,104170.0,104160.0,0.49060278]
[1750431361282,0.23039095,104170.0,104160.0,0.21135436]
[1750431361500,0.23039095,104170.0,104160.0,0.25264931]
[1750431361718,0.220792,104170.0,104160.0,0.4271295]
[1750431361954,0.28519391,104180.0,104160.0,0.43672862]
[1750431362172,0.28519391,104180.0,104170.0,0.21119304]
[1750431362386,0.22447542,104180.0,104160.0,0.53200755]
[1750431362604,0.001,104170.0,104160.0,0.53600755]
[1750431362817,0.26829348,104170.0,104160.0,0.17850132]
[1750431363101,0.26429335,104170.0,104160.0,0.00114132]
[1750431363541,0.26329335,104170.0,104160.0,0.00014132]
[1750431364411,0.04989873,104170.0,104160.0,0.20175403]
[1750431364636,0.22379235,104170.0,104160.0,0.22095424]
[1750431364846,0.22079227,104170.0,104160.0,0.21135418]
[1750431365052,0.01919873,104170.0,104160.0,0.21235418]
[1750431365265,0.01059895,104170.0,104160.0,0.28363714]
[1750431365478,0.23139113,104170.0,104160.0,0.27403718]
[1750431365698,0.04039728,104170.0,104160.0,0.28463714]
[1750431365907,0.23239094,104170.0,104160.0,0.27503718]
[1750431366124,0.04039709,104170.0,104160.0,0.28463724]
[1750431366342,0.002,104170.0,104160.0,0.38951613]
[1750431366574,0.002,104170.0,104160.0,1.16365635]
[1750431368748,0.00964619,104200.0,104190.0,0.4479772]
[1750431368952,0.03283893,104200.0,104190.0,0.4489772]
[1750431369174,0.00405,104200.0,104190.0,0.4489772]
[1750431369405,0.00405,104200.0,104190.0,0.54425613]
[1750431369621,0.00505,104200.0,104190.0,0.54425613]
[1750431370785,0.00505,104200.0,104190.0,1.14323635]
[1750431370885,0.00505,104200.0,104190.0,0.57485613]
[1750431371107,0.00505,104200.0,104190.0,0.54405613]
[1750431371531,0.00405,104200.0,104190.0,0.54405613]
[1750431371747,5e-05,104200.0,104190.0,0.54305613]
[1750431371980,5e-05,104200.0,104190.0,0.54505613]
[1750431372203,0.00105,104200.0,104190.0,0.54705613]
[1750431372422,0.00105,104200.0,104190.0,0.54505613]
[1750431372859,0.00105,104200.0,104190.0,0.54805613]
[1750431373082,0.00105,104200.0,104190.0,0.37381613]
[1750431373083,0.02024247,104200.0,104190.0,0.37381613]
[1750431373304,0.10535602,104210.0,104200.0,0.22072851]
[1750431373514,0.26038097,104220.0,104210.0,0.22070715]
[1750431373732,0.25078644,104220.0,104210.0,0.20151607]
[1750431373965,0.0301,104220.0,104210.0,0.2303027]
[1750431374190,0.03969425,104220.0,104210.0,0.2303027]
[1750431374418,5e-05,104230.0,104220.0,0.22068588]
[1750431374707,5e-05,104230.0,104220.0,0.58539466]
[1750431374924,0.00964333,104230.0,104220.0,0.58539466]
[1750431375136,5e-05,104230.0,104220.0,0.58539466]
[1750431375351,0.00964343,104230.0,104220.0,0.30636129]
[1750431375566,0.06452932,104230.0,104220.0,0.39488588]
[1750431375793,0.05493534,104230.0,104220.0,0.39476588]
[1750431376028,0.05593525,104230.0,104220.0,0.39676588]
[1750431376267,5e-05,104230.0,104220.0,0.39776588]
[1750431376489,5e-05,104230.0,104220.0,1.06142503]
[1750431376703,0.00205,104230.0,104220.0,1.15769488]
[1750431376923,0.00205,104230.0,104220.0,0.58931466]
[1750431377436,0.00205,104230.0,104220.0,1.18719488]
[1750431377653,0.00205,104230.0,104220.0,0.61981466]
[1750431377877,0.00205,104230.0,104220.0,0.58747466]
[1750431378314,5e-05,104230.0,104220.0,0.58547466]
[1750431378530,5e-05,104230.0,104220.0,0.58747466]
[1750431378759,0.0776073,104250.0,104240.0,0.20142946]
[1750431378975,0.28147056,104250.0,104240.0,0.20142946]
[1750431379196,0.0191851,104240.0,104230.0,0.39476816]
[1750431379411,0.0191851,104240.0,104230.0,0.22064816]
[1750431379412,0.02877816,104240.0,104230.0,0.22064816]
[1750431379640,0.02877816,104240.0,104230.0,0.39472816]
[1750431379882,0.00959352,104230.0,104220.0,0.3950456]
[1750431380102,0.83043121,104240.0,104230.0,0.20147731]
[1750431380309,0.02878111,104230.0,104220.0,0.45535677]
[1750431380522,0.22066444,104230.0,104220.0,0.43416744]
[1750431380734,0.22066444,104230.0,104220.0,0.19190174]
[1750431380735,0.2614586,104230.0,104220.0,0.19190174]
[1750431380953,0.25186517,104230.0,104220.0,0.38497145]
[1750431381176,0.20149636,104220.0,104210.0,0.2016573]
[1750431381393,0.21109126,104220.0,104210.0,0.20165748]
[1750431381614,0.23269664,104220.0,104210.0,0.00014132]
[1750431381832,0.0714949,104220.0,104210.0,0.19192016]
[1750431382052,0.01919062,104210.0,104200.0,0.21113141]
[1750431382286,0.08167701,104210.0,104200.0,0.3946486]
[1750431382544,0.08167683,104210.0,104200.0,0.23032497]
[1750431382757,0.08167683,104210.0,104200.0,0.41372125]
[1750431382972,0.00959517,104210.0,104200.0,0.43771532]
[1750431383186,0.2827279,104220.0,104210.0,0.2111117]
[1750431383844,1.00566118,104230.0,104220.0,0.19190174]
[1750431384063,0.22168552,104220.0,104210.0,0.2161117]
[1750431384287,0.21209117,104220.0,104210.0,0.27861152]
[1750431384502,0.20149655,104220.0,104210.0,0.27361171]
[1750431384766,0.19190174,104220.0,104210.0,0.27361171]
[1750431385120,0.19190174,104220.0,104210.0,0.06449982]
[1750431385331,0.19190174,104220.0,104210.0,0.2227077]
[1750431385617,0.19290174,104220.0,104210.0,0.2237077]
[1750431385850,0.001,104220.0,104210.0,0.2237077]
[1750431386063,0.24387408,104220.0,104210.0,0.24289851]
[1750431386280,0.2120909,104220.0,104210.0,0.30805701]
[1750431386504,0.23128051,104220.0,104210.0,0.29846165]
[1750431387171,0.22168616,104220.0,104210.0,0.2888662]
[1750431387390,0.21209163,104220.0,104210.0,0.27927057]
[1750431387625,0.21209163,104220.0,104210.0,0.28886639]
[1750431387845,1.26965597,104220.0,104210.0,0.003]
[1750431388931,1.17437704,104220.0,104210.0,0.19492016]
[1750431389144,0.61268598,104220.0,104210.0,0.22370724]
[1750431389354,0.6222806,104220.0,104210.0,0.2333026]
[1750431389573,0.43037886,104220.0,104210.0,0.29412226]
[1750431389792,0.03937868,104220.0,104210.0,0.29412226]
[1750431390036,0.01359303,104220.0,104210.0,0.2333026]
[1750431390295,0.02318747,104220.0,104210.0,0.2333026]
[1750431390506,0.03937822,104220.0,104210.0,0.2333026]
[1750431390721,0.2408755,104220.0,104210.0,0.2333026]
[1750431390947,0.02018897,104220.0,104210.0,0.2333026]
[1750431391162,0.02018878,104220.0,104210.0,0.38940519]
[1750431391610,0.02018869,104220.0,104210.0,0.38940519]
[1750431391830,0.001,104220.0,104210.0,0.38940519]
[1750431392275,0.001,104220.0,104210.0,1.09643035]
[1750431393816,0.001,104220.0,104210.0,1.14443035]
[1750431394038,0.051,104260.0,104250.0,0.22062238]
[1750431394293,0.07065362,104260.0,104250.0,0.43690962]
[1750431394516,0.00047219,104260.0,104250.0,0.53218855]
[1750431395174,0.00247219,104260.0,104250.0,0.53218855]
[1750431395391,0.00647219,104260.0,104250.0,0.53318855]
[1750431396258,0.00647219,104260.0,104250.0,1.16406877]
[1750431396474,0.00447219,104260.0,104250.0,0.59568855]
[1750431396691,0.00447219,104260.0,104250.0,0.56588855]
[1750431396926,0.00247219,104260.0,104250.0,0.35906855]
[1750431397146,0.00247219,104260.0,104250.0,0.53278855]
[1750431397374,0.00047219,104260.0,104250.0,0.53278855]
[1750431397616,0.00647219,104260.0,104250.0,0.36306855]
[1750431398063,0.00647219,104260.0,104250.0,0.53658855]
[1750431398342,0.00047219,104260.0,104250.0,0.53558855]
[1750431398558,0.00047219,104260.0,104250.0,0.36206855]
[1750431398770,0.00047219,104260.0,104250.0,0.53754855]
[1750431399640,0.00047219,104260.0,104250.0,0.53454855]
[1750431400370,0.00447219,104260.0,104250.0,0.53454855]
[1750431400610,0.00447219,104260.0,104250.0,0.53434855]
[1750431400864,0.00447219,104260.0,104250.0,0.53446855]
[1750431400865,0.01406276,104260.0,104250.0,0.53446855]
[1750431401319,0.59507314,104260.0,104250.0,0.20343875]
[1750431401541,1.18526269,104260.0,104250.0,0.19384652]
[1750431401773,1.18526269,104260.0,104250.0,0.002]
[1750431402477,0.61688247,104260.0,104250.0,0.002]
[1750431402696,0.23153875,104250.0,104240.0,0.20145816]
[1750431402933,0.65453875,104250.0,104240.0,0.21105131]
[1750431403169,0.25374345,104240.0,104230.0,0.19186666]
[1750431403432,0.84383153,104240.0,104220.0,0.39389317]
[1750431403658,0.84383153,104240.0,104230.0,0.21107138]
[1750431403883,0.19188333,104230.0,104220.0,0.21105873]
[1750431404109,0.2327774,104230.0,104220.0,0.22065317]
[1750431404343,0.2615586,104230.0,104220.0,0.20146447]
[1750431404570,0.2615586,104230.0,104210.0,0.38423189]
[1750431404571,0.2626806,104220.0,104210.0,0.38423189]
[1750431404989,0.0287869,104210.0,104200.0,0.2303237]
[1750431405228,0.05158971,104220.0,104210.0,0.22070734]
[1750431405442,0.26268106,104220.0,104210.0,0.22070734]
[1750431405643,0.26268106,104220.0,104210.0,0.21111189]
[1750431405918,0.26268106,104220.0,104180.0,0.79178376]
[1750431405919,0.00959711,104190.0,104180.0,0.19190354]
[1750431406154,0.21113205,104200.0,104190.0,0.21115232]
[1750431406155,0.22073403,104200.0,104190.0,0.21115232]
[1750431406399,0.21115204,104190.0,104180.0,0.33862026]
[1750431406624,0.27110979,104190.0,104180.0,0.39372038]
[1750431406847,0.28070764,104190.0,104180.0,0.39372038]
[1750431407061,0.86059282,104190.0,104180.0,0.00014156]
[1750431407281,1.23399282,104190.0,104180.0,0.00514156]
[1750431407504,1.18363282,104190.0,104180.0,0.00514156]
[1750431407726,6.36027775,104190.0,104180.0,0.00014156]
[1750431407938,6.36127775,104190.0,104180.0,0.00614156]
[1750431408154,6.3758186,104190.0,104180.0,0.00614156]
[1750431408569,6.3254586,104190.0,104180.0,0.00614156]
[1750431408784,0.6656126,104190.0,104180.0,0.00614156]
[1750431409005,0.60251223,104190.0,104180.0,0.00614156]
[1750431409234,0.55215223,104190.0,104180.0,0.00614156]
[1750431409441,0.59291475,104190.0,104180.0,0.00614156]
[1750431409926,0.59291475,104190.0,104180.0,0.00314156]
[1750431410352,0.59291475,104190.0,104180.0,0.00014156]
[1750431410774,0.59291475,104190.0,104180.0,0.00114156]
[1750431410775,6.22790097,104190.0,104180.0,0.00114156]
[1750431410990,6.36712075,104190.0,104180.0,0.00014156]
[1750431411204,6.36712075,104190.0,104180.0,0.00114156]
[1750431411418,6.54132075,104190.0,104180.0,0.00214156]
[1750431412063,6.22861965,104170.0,104160.0,0.0001]
[1750431412282,6.49705858,104170.0,104160.0,0.0001]
[1750431413149,6.32389858,104170.0,104160.0,0.0001]
[1750431413359,6.54733858,104170.0,104160.0,0.0001]
[1750431414052,6.57566421,104170.0,104160.0,0.0011]
[1750431414270,6.00728399,104170.0,104160.0,0.0011]
[1750431414484,6.57666421,104170.0,104160.0,0.0021]
[1750431415118,0.58051821,104170.0,104160.0,0.2037128]
[1750431415354,0.36932563,104170.0,104160.0,0.21331304]
[1750431415570,0.36932563,104170.0,104160.0,0.222913]
[1750431415571,0.02932563,104170.0,104160.0,0.222913]
[1750431415790,0.08928449,104170.0,104160.0,0.222913]
[1750431416435,0.11808253,104170.0,104160.0,0.222913]
[1750431416679,0.31307702,104170.0,104160.0,0.19411228]
[1750431416910,0.86885821,104170.0,104160.0,0.21331322]
[1750431417141,1.4032788,104170.0,104160.0,0.0021]
[1750431417397,6.4680848,104170.0,104160.0,0.0021]
[1750431417623,1.1799988,104170.0,104160.0,0.0021]
[1750431417839,1.4032788,104170.0,104160.0,0.0021]
[1750431419127,0.63087858,104170.0,104160.0,0.0021]
[1750431419344,0.63087858,104170.0,104160.0,0.20371289]
[1750431419557,0.63087858,104170.0,104160.0,0.0021]
[1750431420197,1.1992588,104170.0,104160.0,0.0021]
[1750431420633,1.2613588,104170.0,104160.0,0.0021]
[1750431420851,6.40318458,104170.0,104160.0,0.0021]
[1750431421369,0.2112737,104130.0,104120.0,0.03172]
[1750431421589,0.02881179,104120.0,104110.0,0.39383643]
[1750431421818,0.02881179,104120.0,104110.0,0.46990594]
[1750431421819,0.23050222,104120.0,104110.0,0.46990594]
[1750431422053,0.02881963,104090.0,104080.0,0.19225987]
[1750431422293,0.03842697,104090.0,104080.0,0.31636175]
[1750431422516,0.02881945,104090.0,104080.0,0.3403153]
[1750431422732,0.03856765,104090.0,104080.0,0.3067545]
[1750431422970,0.00974756,104090.0,104080.0,0.23069072]
[1750431423196,0.00974756,104090.0,104080.0,0.22108338]
[1750431423197,0.60694787,104090.0,104080.0,0.22108338]
[1750431423419,0.83473928,104090.0,104080.0,0.0041]
[1750431423636,0.86339763,104090.0,104080.0,0.19625987]
[1750431423875,0.83652142,104090.0,104080.0,0.0041]
[1750431424094,0.03940627,104090.0,104080.0,0.22508301]
[1750431424337,0.0616221,104090.0,104080.0,0.23469035]
[1750431424557,0.03280229,104090.0,104080.0,0.23469035]
[1750431424790,0.02979967,104090.0,104080.0,0.23469035]
[1750431425027,0.00214132,104090.0,104080.0,0.23969035]
[1750431425259,0.00214132,104090.0,104080.0,0.36716928]
[1750431425481,0.00214132,104090.0,104080.0,1.05524796]
[1750431425717,0.00214132,104090.0,104080.0,1.32347781]
[1750431425938,0.00214132,104090.0,104080.0,1.37347781]
[1750431426370,0.00214132,104090.0,104080.0,0.71059913]
[1750431426580,0.00014132,104090.0,104080.0,1.36447781]
[1750431426796,0.00114132,104090.0,104080.0,0.48863913]
[1750431427010,0.00114132,104090.0,104080.0,1.36947781]
[1750431427443,0.10805485,104130.0,104080.0,1.36947781]
[1750431427444,0.0792462,104130.0,104120.0,0.22089784]
[1750431427663,0.0763866,104130.0,104120.0,0.51126987]
[1750431427889,0.0763866,104130.0,104120.0,0.22370336]
[1750431427890,0.30686567,104130.0,104120.0,0.22370336]
[1750431428124,0.09559233,104130.0,104120.0,0.22089784]
[1750431428332,0.09859306,104130.0,104120.0,0.39405784]
[1750431428551,0.30026458,104130.0,104120.0,0.19208605]
[1750431428768,0.3374634,104130.0,104120.0,0.001]
[1750431429068,0.09959197,104130.0,104120.0,0.21129419]
[1750431429285,0.15199962,104130.0,104120.0,0.21229437]
[1750431429510,0.1271906,104130.0,104120.0,0.21229437]
[1750431429733,0.00814166,104130.0,104120.0,0.38645203]
[1750431429954,0.00814166,104130.0,104120.0,0.55953203]
[1750431430174,0.00814166,104130.0,104120.0,1.27821071]
[1750431430391,0.00814166,104130.0,104120.0,0.44725203]
[1750431430622,0.00814166,104130.0,104120.0,0.38645203]
[1750431430829,0.00814166,104130.0,104120.0,0.55977203]
[1750431431264,0.00814166,104130.0,104120.0,0.55877203]
[1750431431265,0.00414166,104130.0,104120.0,0.55877203]
[1750431431490,0.00114166,104130.0,104120.0,0.55977203]
[1750431431699,0.00114166,104130.0,104120.0,0.59177203]
[1750431431920,0.00314166,104130.0,104120.0,0.59177203]
[1750431432323,0.00114166,104130.0,104120.0,0.59177203]
[1750431432794,0.00114166,104130.0,104120.0,0.38745203]
[1750431433014,0.00114166,104130.0,104120.0,0.56069203]
[1750431433215,0.00114166,104130.0,104120.0,0.59179203]
[1750431434080,0.00114166,104130.0,104120.0,0.37784838]
[1750431434297,0.0299504,104130.0,104120.0,0.50102088]
[1750431434500,0.02034721,104130.0,104120.0,0.50102088]
[1750431434710,0.21541654,104130.0,104120.0,0.002]
[1750431434921,0.27491536,104130.0,104120.0,0.002]
[1750431435562,1.27279404,104130.0,104120.0,0.001]
[1750431436003,0.22091878,104110.0,104100.0,0.21133413]
[1750431436217,0.0192109,104100.0,104090.0,0.37502378]
[1750431436429,0.03842235,104100.0,104090.0,0.56864778]
[1750431436693,0.02881658,104100.0,104090.0,0.56864778]
[1750431437107,0.03181912,104100.0,104090.0,0.21131057]
[1750431437313,0.0096055,104100.0,104090.0,0.40380369]
[1750431437519,0.03842292,104100.0,104090.0,0.40380369]
[1750431437729,0.22300262,104120.0,104100.0,0.21133459]
[1750431437933,0.02881428,104110.0,104100.0,0.21133459]
[1750431438140,0.02221076,104110.0,104100.0,0.21133459]